[Event "FIDE Women's Grand Swiss 2023"]
[Site "Villa Marina, Douglas, Isle of Man, Isle Of Man"]
[Date "2023.11.05"]
[Round "11.11"]
[White "Socko, Monika"]
[Black "Tania, Sachdev"]
[Result "1-0"]
[TimeControl "40/90 + 30 + 30s/move"]
[WhiteFideId "1106619"]
[BlackFideId "5007844"]
[WhiteElo "2380"]
[BlackElo "2389"]

1. e4 {[%clk 01:30:56]} {[%emt 00:00:03]} e5 {[%clk 01:30:46]} {[%emt
00:00:15]} 2. Nf3 {[%clk 01:31:22]} {[%emt 00:00:04]} Nc6 {[%clk 01:31:13]}
{[%emt 00:00:03]} 3. d4 {[%clk 01:31:48]} {[%emt 00:00:03]} exd4 {[%clk
01:31:36]} {[%emt 00:00:06]} 4. Nxd4 {[%clk 01:32:14]} {[%emt 00:00:04]} Nf6
{[%clk 01:31:26]} {[%emt 00:00:41]} 5. Nxc6 {[%clk 01:32:40]} {[%emt 00:00:05]}
bxc6 {[%clk 01:31:53]} {[%emt 00:00:03]} 6. Bd3 {[%clk 01:33:03]} {[%emt
00:00:06]} d6 {[%clk 01:29:53]} {[%emt 00:02:30]} 7. O-O {[%clk 01:33:04]}
{[%emt 00:00:28]} Be7 {[%clk 01:30:14]} {[%emt 00:00:10]} 8. Nc3 {[%clk
01:33:05]} {[%emt 00:00:30]} O-O {[%clk 01:29:57]} {[%emt 00:00:47]} 9. f4
{[%clk 01:33:32]} {[%emt 00:00:03]} Re8 {[%clk 01:23:56]} {[%emt 00:06:31]} 10.
Qf3 {[%clk 01:33:57]} {[%emt 00:00:05]} Rb8 {[%clk 01:20:37]} {[%emt 00:03:49]}
11. Kh1 {[%clk 01:32:13]} {[%emt 00:02:13]} Nd7 {[%clk 01:06:08]} {[%emt
00:14:59]} 12. b3 {[%clk 01:23:03]} {[%emt 00:09:39]} Nc5 {[%clk 00:58:32]}
{[%emt 00:08:07]} 13. Bb2 {[%clk 01:23:12]} {[%emt 00:00:21]} Qd7 {[%clk
00:47:01]} {[%emt 00:12:01]} 14. h3 {[%clk 01:18:02]} {[%emt 00:05:39]} Bb7
{[%clk 00:42:57]} {[%emt 00:04:34]} 15. Bc4 {[%clk 01:12:42]} {[%emt 00:05:50]}
Ba6 {[%clk 00:42:05]} {[%emt 00:01:23]} 16. Bxa6 {[%clk 01:09:46]} {[%emt
00:03:26]} Nxa6 {[%clk 00:42:34]} {[%emt 00:00:02]} 17. Ne2 {[%clk 01:07:51]}
{[%emt 00:02:24]} Bf8 {[%clk 00:38:36]} {[%emt 00:04:29]} 18. Ng3 {[%clk
01:05:33]} {[%emt 00:02:47]} Nc5 {[%clk 00:37:10]} {[%emt 00:01:56]} 19. Rad1
{[%clk 00:56:02]} {[%emt 00:10:01]} a5 {[%clk 00:34:24]} {[%emt 00:03:17]} 20.
Rfe1 {[%clk 00:55:34]} {[%emt 00:00:58]} f6 {[%clk 00:30:33]} {[%emt 00:04:21]}
21. Qc3 {[%clk 00:45:25]} {[%emt 00:10:39]} Qf7 {[%clk 00:29:54]} {[%emt
00:01:09]} 22. Ba3 {[%clk 00:41:43]} {[%emt 00:04:13]} Ne6 {[%clk 00:23:37]}
{[%emt 00:06:46]} 23. f5 {[%clk 00:38:56]} {[%emt 00:03:17]} Nc5 {[%clk
00:24:04]} {[%emt 00:00:04]} 24. Bxc5 {[%clk 00:34:27]} {[%emt 00:04:59]} dxc5
{[%clk 00:24:32]} 25. Qf3 {[%clk 00:34:29]} {[%emt 00:00:27]} Bd6 {[%clk
00:22:35]} {[%emt 00:02:28]} 26. Nh5 {[%clk 00:33:04]} {[%emt 00:01:55]} c4
{[%clk 00:20:41]} {[%emt 00:02:24]} 27. Nf4 {[%clk 00:33:01]} {[%emt 00:00:33]}
cxb3 {[%clk 00:19:50]} {[%emt 00:01:22]} 28. axb3 {[%clk 00:32:36]} {[%emt
00:00:55]} Bxf4 {[%clk 00:15:20]} {[%emt 00:05:00]} 29. Qxf4 {[%clk 00:33:02]}
{[%emt 00:00:04]} Re5 {[%clk 00:14:19]} {[%emt 00:01:31]} 30. Rd4 {[%clk
00:32:03]} {[%emt 00:01:29]} Rbe8 {[%clk 00:05:17]} {[%emt 00:09:33]} 31. Red1
{[%clk 00:31:37]} {[%emt 00:00:55]} Qh5 {[%clk 00:04:31]} {[%emt 00:01:16]} 32.
Rd7 {[%clk 00:18:19]} {[%emt 00:13:49]} Rxe4 {[%clk 00:03:18]} {[%emt
00:01:42]} 33. Qxc7 {[%clk 00:18:11]} {[%emt 00:00:38]} Qg5 {[%clk 00:02:50]}
{[%emt 00:00:59]} 34. R1d3 {[%clk 00:13:58]} {[%emt 00:04:43]} Qxf5 {[%clk
00:01:45]} {[%emt 00:01:34]} 35. Rxg7+ {[%clk 00:13:42]} {[%emt 00:00:46]} Kh8
{[%clk 00:02:15]} 36. Rdd7 {[%clk 00:11:52]} {[%emt 00:02:19]} Rh4 {[%clk
00:02:28]} {[%emt 00:00:16]} 37. Qg3 {[%clk 00:11:49]} {[%emt 00:00:33]} Rh6
{[%clk 00:01:39]} {[%emt 00:01:20]} 38. Rge7 {[%clk 00:11:37]} {[%emt
00:00:43]} 1-0

[Event "FIDE Women's Grand Swiss 2023"]
[Site "Villa Marina, Douglas, Isle of Man, Isle Of Man"]
[Date "2023.11.05"]
[Round "11.12"]
[White "Paehtz, Elisabeth"]
[Black "Ushenina, Anna"]
[Result "1/2-1/2"]
[TimeControl "40/90 + 30 + 30s/move"]
[WhiteFideId "4641833"]
[BlackFideId "14110911"]
[WhiteElo "2484"]
[BlackElo "2434"]

1. e4 {[%clk 01:30:58]} {[%emt 00:00:02]} e5 {[%clk 01:30:55]} {[%emt
00:00:05]} 2. Nf3 {[%clk 01:31:24]} {[%emt 00:00:03]} Nf6 {[%clk 01:31:19]}
{[%emt 00:00:06]} 3. Nxe5 {[%clk 01:31:51]} {[%emt 00:00:03]} d6 {[%clk
01:31:45]} {[%emt 00:00:05]} 4. Nf3 {[%clk 01:32:18]} {[%emt 00:00:03]} Nxe4
{[%clk 01:32:09]} {[%emt 00:00:06]} 5. d4 {[%clk 01:32:45]} {[%emt 00:00:03]}
d5 {[%clk 01:32:29]} {[%emt 00:00:10]} 6. Bd3 {[%clk 01:33:12]} {[%emt
00:00:03]} Nc6 {[%clk 01:32:42]} {[%emt 00:00:17]} 7. O-O {[%clk 01:33:03]}
{[%emt 00:00:39]} Be7 {[%clk 01:33:08]} {[%emt 00:00:04]} 8. Nbd2 {[%clk
01:27:29]} {[%emt 00:06:04]} Nxd2 {[%clk 01:31:57]} {[%emt 00:01:42]} 9. Bxd2
{[%clk 01:27:13]} {[%emt 00:00:46]} Bg4 {[%clk 01:32:19]} {[%emt 00:00:07]} 10.
c3 {[%clk 01:27:14]} {[%emt 00:00:29]} O-O {[%clk 01:24:18]} {[%emt 00:08:31]}
11. h3 {[%clk 01:27:40]} {[%emt 00:00:04]} Bh5 {[%clk 01:24:37]} {[%emt
00:00:11]} 12. g3 {[%clk 01:27:49]} {[%emt 00:00:21]} Qd7 {[%clk 01:24:16]}
{[%emt 00:00:52]} 13. Kg2 {[%clk 01:28:10]} {[%emt 00:00:09]} Bg6 {[%clk
01:16:42]} {[%emt 00:08:05]} 14. Bf4 {[%clk 01:28:34]} {[%emt 00:00:05]} Bxd3
{[%clk 01:09:32]} {[%emt 00:07:40]} 15. Qxd3 {[%clk 01:28:47]} {[%emt
00:00:17]} a6 {[%clk 01:05:43]} {[%emt 00:04:19]} 16. Rfe1 {[%clk 01:28:45]}
{[%emt 00:00:31]} Rae8 {[%clk 00:51:47]} {[%emt 00:14:26]} 17. Re2 {[%clk
01:26:05]} {[%emt 00:03:10]} Bd8 {[%clk 00:44:53]} {[%emt 00:07:25]} 18. Rae1
{[%clk 01:25:54]} {[%emt 00:00:40]} Rxe2 {[%clk 00:44:57]} {[%emt 00:00:28]} 19.
Qxe2 {[%clk 01:24:03]} {[%emt 00:02:21]} f6 {[%clk 00:44:56]} {[%emt 00:00:31]}
20. h4 {[%clk 01:19:07]} {[%emt 00:05:25]} Rf7 {[%clk 00:44:01]} {[%emt
00:01:25]} 21. Qe8+ {[%clk 00:50:57]} {[%emt 00:28:40]} Qxe8 {[%clk 00:44:11]}
{[%emt 00:00:21]} 22. Rxe8+ {[%clk 00:51:21]} {[%emt 00:00:06]} Rf8 {[%clk
00:44:39]} {[%emt 00:00:03]} 23. Re2 {[%clk 00:51:37]} {[%emt 00:00:13]} Kf7
{[%clk 00:43:09]} {[%emt 00:02:00]} 24. Ne1 {[%clk 00:52:02]} {[%emt 00:00:04]}
Nb8 {[%clk 00:38:17]} {[%emt 00:05:22]} 25. Nd3 {[%clk 00:51:57]} {[%emt
00:00:35]} Nd7 {[%clk 00:37:59]} {[%emt 00:00:49]} 26. g4 {[%clk 00:49:30]}
{[%emt 00:02:57]} Re8 {[%clk 00:34:09]} {[%emt 00:04:20]} 27. Rxe8 {[%clk
00:49:55]} {[%emt 00:00:05]} Kxe8 {[%clk 00:34:34]} {[%emt 00:00:06]} 28. h5
{[%clk 00:50:06]} {[%emt 00:00:19]} Kf7 {[%clk 00:33:43]} {[%emt 00:01:20]} 29.
f3 {[%clk 00:49:11]} {[%emt 00:01:25]} Ke6 {[%clk 00:32:30]} {[%emt 00:01:44]}
30. Bg3 {[%clk 00:49:17]} {[%emt 00:00:23]} c6 {[%clk 00:32:18]} {[%emt
00:00:43]} 31. Nf4+ {[%clk 00:49:44]} {[%emt 00:00:04]} Kf7 {[%clk 00:32:39]}
{[%emt 00:00:09]} 32. Nd3 {[%clk 00:50:10]} {[%emt 00:00:03]} Ke6 {[%clk
00:32:57]} {[%emt 00:00:12]} 33. Nf4+ {[%clk 00:50:36]} {[%emt 00:00:04]} Kf7
{[%clk 00:33:25]} {[%emt 00:00:03]} 34. Nd3 {[%clk 00:51:02]} {[%emt 00:00:04]}
Ke6 {[%clk 00:33:50]} {[%emt 00:00:05]} 1/2-1/2

[Event "FIDE Women's Grand Swiss 2023"]
[Site "Villa Marina, Douglas, Isle of Man, Isle Of Man"]
[Date "2023.11.05"]
[Round "11.13"]
[White "Divya, Deshmukh"]
[Black "Efroimski, Marsel"]
[Result "1-0"]
[TimeControl "40/90 + 30 + 30s/move"]
[WhiteFideId "35006916"]
[BlackFideId "2810964"]
[WhiteElo "2408"]
[BlackElo "2447"]

1. c4 {[%clk 01:30:58]} {[%emt 00:00:02]} e6 {[%clk 01:30:08]} {[%emt
00:00:52]} 2. g3 {[%clk 01:31:21]} {[%emt 00:00:07]} d5 {[%clk 01:30:34]}
{[%emt 00:00:05]} 3. Bg2 {[%clk 01:31:45]} {[%emt 00:00:06]} Nf6 {[%clk
01:30:55]} {[%emt 00:00:08]} 4. Nf3 {[%clk 01:32:09]} {[%emt 00:00:06]} dxc4
{[%clk 01:31:13]} {[%emt 00:00:13]} 5. Qa4+ {[%clk 01:32:23]} {[%emt 00:00:16]}
Bd7 {[%clk 01:31:18]} {[%emt 00:00:24]} 6. Qxc4 {[%clk 01:32:41]} {[%emt
00:00:12]} c5 {[%clk 01:31:45]} {[%emt 00:00:04]} 7. Ne5 {[%clk 01:30:08]}
{[%emt 00:03:03]} Qc8 {[%clk 01:32:10]} {[%emt 00:00:05]} 8. O-O {[%clk
01:27:26]} {[%emt 00:03:11]} Nc6 {[%clk 01:32:29]} {[%emt 00:00:12]} 9. f4
{[%clk 01:17:59]} {[%emt 00:09:58]} b5 {[%clk 01:24:31]} {[%emt 00:08:29]} 10.
Qc2 {[%clk 01:17:26]} {[%emt 00:01:02]} Nxe5 {[%clk 00:50:15]} {[%emt
00:34:46]} 11. fxe5 {[%clk 01:11:46]} {[%emt 00:06:10]} Nd5 {[%clk 00:50:37]}
{[%emt 00:00:08]} 12. Nc3 {[%clk 01:10:57]} {[%emt 00:01:19]} Nxc3 {[%clk
00:46:07]} {[%emt 00:05:00]} 13. dxc3 {[%clk 00:58:24]} {[%emt 00:13:03]} Bc6
{[%clk 00:44:58]} {[%emt 00:01:39]} 14. a4 {[%clk 00:55:46]} {[%emt 00:03:09]}
Bxg2 {[%clk 00:44:22]} {[%emt 00:01:05]} 15. Kxg2 {[%clk 00:56:13]} {[%emt
00:00:02]} Qb7+ {[%clk 00:42:35]} {[%emt 00:02:17]} 16. Rf3 {[%clk 00:56:19]}
{[%emt 00:00:24]} a6 {[%clk 00:33:22]} {[%emt 00:09:44]} 17. axb5 {[%clk
00:49:52]} {[%emt 00:06:56]} axb5 {[%clk 00:33:39]} {[%emt 00:00:13]} 18. Rxa8+
{[%clk 00:50:17]} {[%emt 00:00:05]} Qxa8 {[%clk 00:34:07]} {[%emt 00:00:02]} 19.
Qd3 {[%clk 00:50:24]} {[%emt 00:00:23]} c4 {[%clk 00:33:18]} {[%emt 00:01:19]}
20. Qd4 {[%clk 00:50:34]} {[%emt 00:00:19]} Qd5 {[%clk 00:11:37]} {[%emt
00:22:12]} 21. Qa7 {[%clk 00:48:59]} {[%emt 00:02:06]} f5 {[%clk 00:11:32]}
{[%emt 00:00:35]} 22. exf6 {[%clk 00:41:45]} {[%emt 00:07:45]} gxf6 {[%clk
00:12:00]} {[%emt 00:00:01]} 23. Be3 {[%clk 00:41:54]} {[%emt 00:00:20]} Be7
{[%clk 00:09:57]} {[%emt 00:02:34]} 24. Qb8+ {[%clk 00:28:29]} {[%emt
00:13:55]} Bd8 {[%clk 00:10:22]} {[%emt 00:00:04]} 25. Qf4 {[%clk 00:28:18]}
{[%emt 00:00:41]} O-O {[%clk 00:09:42]} {[%emt 00:01:11]} 26. Qg4+ {[%clk
00:26:44]} {[%emt 00:02:04]} Kh8 {[%clk 00:09:07]} {[%emt 00:01:05]} 27. Qh4
{[%clk 00:21:32]} {[%emt 00:05:42]} Be7 {[%clk 00:07:22]} {[%emt 00:02:15]} 28.
Bh6 {[%clk 00:20:42]} {[%emt 00:01:20]} Rg8 {[%clk 00:06:41]} {[%emt 00:01:11]}
29. e4 {[%clk 00:19:13]} {[%emt 00:01:58]} Qd1 {[%clk 00:05:16]} {[%emt
00:01:55]} 30. Rf1 {[%clk 00:18:42]} {[%emt 00:01:00]} Qe2+ {[%clk 00:05:30]}
{[%emt 00:00:18]} 31. Rf2 {[%clk 00:19:08]} {[%emt 00:00:04]} Qe1 {[%clk
00:02:39]} {[%emt 00:03:21]} 32. Bd2 {[%clk 00:19:17]} {[%emt 00:00:21]} Qd1
{[%clk 00:02:38]} {[%emt 00:00:32]} 33. e5 {[%clk 00:18:15]} {[%emt 00:01:32]}
Rg4 {[%clk 00:01:17]} {[%emt 00:01:50]} 34. Qh6 {[%clk 00:15:18]} {[%emt
00:03:26]} Rg6 {[%clk 00:01:17]} {[%emt 00:00:31]} 35. Qe3 {[%clk 00:15:37]}
{[%emt 00:00:11]} f5 {[%clk 00:01:13]} {[%emt 00:00:35]} 36. Qa7 {[%clk
00:15:10]} {[%emt 00:00:56]} Bg5 {[%clk 00:01:09]} {[%emt 00:00:34]} 37. Qd7
{[%clk 00:14:03]} {[%emt 00:01:37]} f4 {[%clk 00:00:45]} {[%emt 00:00:54]} 38.
Qc8+ {[%clk 00:10:51]} {[%emt 00:03:42]} Rg8 {[%clk 00:00:40]} {[%emt
00:00:34]} 39. Qxe6 {[%clk 00:11:19]} {[%emt 00:00:02]} f3+ {[%clk 00:00:39]}
{[%emt 00:00:31]} 40. Kh3 {[%clk 00:11:47]} {[%emt 00:00:02]} Rg6 {[%clk
00:00:33]} {[%emt 00:00:36]} 41. Qc8+ {[%clk 00:02:02]} {[%emt 00:10:14]} Rg8
{[%clk 00:26:30]} {[%emt 00:04:33]} 42. Qf5 {[%clk 00:31:48]} {[%emt 00:00:43]}
Bxd2 {[%clk 00:20:48]} {[%emt 00:06:13]} 43. Qf6+ {[%clk 00:31:55]} {[%emt
00:00:23]} Rg7 {[%clk 00:21:14]} {[%emt 00:00:05]} 44. Qd8+ {[%clk 00:31:08]}
{[%emt 00:01:16]} Rg8 {[%clk 00:21:40]} {[%emt 00:00:04]} 45. Qxd2 {[%clk
00:24:32]} {[%emt 00:07:06]} Qxd2 {[%clk 00:21:22]} {[%emt 00:00:48]} 46. Rxd2
{[%clk 00:25:00]} {[%emt 00:00:02]} Rg5 {[%clk 00:19:53]} {[%emt 00:01:59]} 47.
e6 {[%clk 00:24:49]} {[%emt 00:00:42]} Kg7 {[%clk 00:14:49]} {[%emt 00:05:33]}
48. Rf2 {[%clk 00:18:07]} {[%emt 00:07:11]} Kf6 {[%clk 00:13:43]} {[%emt
00:01:37]} 49. Rxf3+ {[%clk 00:18:32]} {[%emt 00:00:04]} Kxe6 {[%clk 00:14:11]}
{[%emt 00:00:02]} 50. Kh4 {[%clk 00:18:29]} {[%emt 00:00:33]} h6 {[%clk
00:06:23]} {[%emt 00:08:18]} 51. Re3+ {[%clk 00:15:22]} {[%emt 00:03:34]} Kd5
{[%clk 00:06:25]} {[%emt 00:00:31]} 52. g4 {[%clk 00:15:31]} {[%emt 00:00:21]}
b4 {[%clk 00:05:40]} {[%emt 00:01:15]} 53. Kg3 {[%clk 00:10:51]} {[%emt
00:05:10]} h5 {[%clk 00:04:37]} {[%emt 00:01:34]} 54. h3 {[%clk 00:11:16]}
{[%emt 00:00:05]} hxg4 {[%clk 00:05:03]} {[%emt 00:00:04]} 55. hxg4 {[%clk
00:11:39]} {[%emt 00:00:07]} bxc3 {[%clk 00:01:32]} {[%emt 00:04:02]} 56. bxc3
{[%clk 00:12:00]} {[%emt 00:00:09]} Rg8 {[%clk 00:01:49]} {[%emt 00:00:13]} 57.
Re1 {[%clk 00:11:28]} {[%emt 00:01:02]} Kc5 {[%clk 00:00:40]} {[%emt 00:01:40]}
58. Re5+ {[%clk 00:11:37]} {[%emt 00:00:21]} Kd6 {[%clk 00:01:06]} {[%emt
00:00:04]} 59. Rf5 {[%clk 00:11:24]} {[%emt 00:00:43]} Rb8 {[%clk 00:01:11]}
{[%emt 00:00:25]} 60. g5 {[%clk 00:10:21]} {[%emt 00:01:33]} Rb1 {[%clk
00:01:30]} {[%emt 00:00:11]} 61. Rf3 {[%clk 00:10:25]} {[%emt 00:00:25]} Ke5
{[%clk 00:01:38]} {[%emt 00:00:23]} 62. Kg4 {[%clk 00:10:43]} {[%emt 00:00:12]}
Rg1+ {[%clk 00:01:03]} {[%emt 00:01:05]} 63. Rg3 {[%clk 00:11:05]} {[%emt
00:00:07]} Re1 {[%clk 00:01:24]} {[%emt 00:00:09]} 64. Rg2 {[%clk 00:07:06]}
{[%emt 00:04:29]} Re3 {[%clk 00:01:16]} {[%emt 00:00:38]} 65. Rg3 {[%clk
00:03:53]} {[%emt 00:03:44]} Re1 {[%clk 00:01:25]} {[%emt 00:00:21]} 66. Kf3
{[%clk 00:03:47]} {[%emt 00:00:36]} Rc1 {[%clk 00:00:34]} {[%emt 00:01:21]} 67.
Kg2 {[%clk 00:02:15]} {[%emt 00:02:01]} Rd1 {[%clk 00:00:43]} {[%emt 00:00:21]}
68. g6 {[%clk 00:00:38]} {[%emt 00:02:07]} Rd2+ {[%clk 00:01:04]} {[%emt
00:00:09]} 69. Kf1 {[%clk 00:00:32]} {[%emt 00:00:37]} Rd8 {[%clk 00:00:59]}
{[%emt 00:00:35]} 70. Ke2 {[%clk 00:00:32]} {[%emt 00:00:30]} Kf4 {[%clk
00:00:49]} {[%emt 00:00:40]} 71. Rg2 {[%clk 00:00:46]} {[%emt 00:00:16]} Re8+
{[%clk 00:01:14]} {[%emt 00:00:05]} 72. Kd2 {[%clk 00:00:34]} {[%emt 00:00:42]}
Kf3 {[%clk 00:00:39]} {[%emt 00:01:05]} 73. Rg1 {[%clk 00:00:54]} {[%emt
00:00:09]} Re2+ {[%clk 00:00:33]} {[%emt 00:00:37]} 74. Kc1 {[%clk 00:01:19]}
{[%emt 00:00:04]} Ra2 {[%clk 00:00:54]} {[%emt 00:00:10]} 75. Kb1 {[%clk
00:01:46]} {[%emt 00:00:04]} Ra8 {[%clk 00:01:16]} {[%emt 00:00:07]} 76. Kb2
{[%clk 00:02:02]} {[%emt 00:00:13]} Ke4 {[%clk 00:00:53]} {[%emt 00:00:54]} 77.
g7 {[%clk 00:02:18]} {[%emt 00:00:14]} Rg8 {[%clk 00:01:19]} {[%emt 00:00:04]}
78. Ka3 {[%clk 00:02:34]} {[%emt 00:00:14]} Kd3 {[%clk 00:00:32]} {[%emt
00:01:17]} 79. Rg3 {[%clk 00:02:07]} {[%emt 00:00:57]} Ke4 {[%clk 00:00:48]}
{[%emt 00:00:14]} 80. Kb4 {[%clk 00:02:35]} {[%emt 00:00:03]} Kf4 {[%clk
00:00:38]} {[%emt 00:00:39]} 81. Rg1 {[%clk 00:02:52]} {[%emt 00:00:13]} 1-0

[Event "FIDE Women's Grand Swiss 2023"]
[Site "Villa Marina, Douglas, Isle of Man, Isle Of Man"]
[Date "2023.11.05"]
[Round "11.14"]
[White "Vantika, Agrawal"]
[Black "Kiolbasa, Oliwia"]
[Result "1/2-1/2"]
[TimeControl "40/90 + 30 + 30s/move"]
[WhiteFideId "25050389"]
[BlackFideId "1154613"]
[WhiteElo "2435"]
[BlackElo "2375"]

1. d4 {[%clk 01:30:40]} {[%emt 00:00:18]} Nf6 {[%clk 01:30:51]} {[%emt
00:00:10]} 2. c4 {[%clk 01:31:04]} {[%emt 00:00:06]} e6 {[%clk 01:31:12]}
{[%emt 00:00:09]} 3. Nf3 {[%clk 01:31:24]} {[%emt 00:00:10]} d5 {[%clk
01:31:29]} {[%emt 00:00:13]} 4. g3 {[%clk 01:31:47]} {[%emt 00:00:07]} dxc4
{[%clk 01:31:37]} {[%emt 00:00:21]} 5. Bg2 {[%clk 01:32:02]} {[%emt 00:00:16]}
c5 {[%clk 01:31:51]} {[%emt 00:00:15]} 6. O-O {[%clk 01:31:44]} {[%emt
00:00:49]} Nc6 {[%clk 01:32:08]} {[%emt 00:00:13]} 7. Qa4 {[%clk 01:31:40]}
{[%emt 00:00:34]} Bd7 {[%clk 01:32:16]} {[%emt 00:00:22]} 8. dxc5 {[%clk
01:31:34]} {[%emt 00:00:36]} Bxc5 {[%clk 01:32:09]} {[%emt 00:00:36]} 9. Qxc4
{[%clk 01:31:50]} {[%emt 00:00:14]} Be7 {[%clk 01:32:07]} {[%emt 00:00:32]} 10.
Nc3 {[%clk 01:32:00]} {[%emt 00:00:21]} O-O {[%clk 01:28:48]} {[%emt 00:03:48]}
11. Rd1 {[%clk 01:31:19]} {[%emt 00:01:12]} Rc8 {[%clk 01:27:17]} {[%emt
00:02:01]} 12. e4 {[%clk 01:24:51]} {[%emt 00:06:58]} Ng4 {[%clk 01:22:44]}
{[%emt 00:05:04]} 13. h3 {[%clk 01:19:51]} {[%emt 00:05:31]} Nce5 {[%clk
01:12:36]} {[%emt 00:10:38]} 14. Qe2 {[%clk 01:17:47]} {[%emt 00:02:33]} Nxf3+
{[%clk 01:12:40]} {[%emt 00:00:26]} 15. Qxf3 {[%clk 01:12:54]} {[%emt
00:05:23]} Ne5 {[%clk 01:12:05]} {[%emt 00:01:04]} 16. Qe2 {[%clk 01:11:26]}
{[%emt 00:01:59]} Bc5 {[%clk 00:51:00]} {[%emt 00:21:34]} 17. Bf4 {[%clk
01:00:12]} {[%emt 00:11:44]} f6 {[%clk 00:49:20]} {[%emt 00:02:10]} 18. Kh2
{[%clk 00:46:13]} {[%emt 00:14:29]} Qe7 {[%clk 00:46:09]} {[%emt 00:03:40]} 19.
Rac1 {[%clk 00:41:05]} {[%emt 00:05:39]} a6 {[%clk 00:43:43]} {[%emt 00:02:57]}
20. Be3 {[%clk 00:38:39]} {[%emt 00:02:55]} b5 {[%clk 00:30:38]} {[%emt
00:13:35]} 21. f4 {[%clk 00:32:16]} {[%emt 00:06:50]} Nc4 {[%clk 00:29:55]}
{[%emt 00:01:16]} 22. Bxc5 {[%clk 00:32:30]} {[%emt 00:00:17]} Rxc5 {[%clk
00:30:15]} {[%emt 00:00:10]} 23. b3 {[%clk 00:30:24]} {[%emt 00:02:35]} Nb6
{[%clk 00:27:59]} {[%emt 00:02:45]} 24. Qe3 {[%clk 00:24:08]} {[%emt 00:06:47]}
Rfc8 {[%clk 00:24:07]} {[%emt 00:04:23]} 25. e5 {[%clk 00:21:48]} {[%emt
00:02:50]} fxe5 {[%clk 00:16:56]} {[%emt 00:07:40]} 26. fxe5 {[%clk 00:20:31]}
{[%emt 00:01:47]} Be8 {[%clk 00:06:13]} {[%emt 00:11:13]} 27. Ne4 {[%clk
00:17:42]} {[%emt 00:03:19]} Rxc1 {[%clk 00:05:45]} {[%emt 00:00:58]} 28. Rxc1
{[%clk 00:18:05]} {[%emt 00:00:07]} Rxc1 {[%clk 00:05:03]} {[%emt 00:01:12]} 29.
Qxc1 {[%clk 00:18:29]} {[%emt 00:00:05]} Nd7 {[%clk 00:03:23]} {[%emt
00:02:11]} 30. Qc7 {[%clk 00:17:47]} {[%emt 00:01:12]} Kf8 {[%clk 00:03:47]}
{[%emt 00:00:06]} 31. Nd6 {[%clk 00:17:40]} {[%emt 00:00:37]} h5 {[%clk
00:02:20]} {[%emt 00:01:57]} 32. Be4 {[%clk 00:07:33]} {[%emt 00:10:37]} Nxe5
{[%clk 00:01:06]} {[%emt 00:01:44]} 33. Nxe8 {[%clk 00:05:24]} {[%emt
00:02:39]} Qg5 {[%clk 00:01:35]} 34. Qd6+ {[%clk 00:01:41]} {[%emt 00:04:13]}
Kxe8 {[%clk 00:01:57]} {[%emt 00:00:09]} 35. Qxe6+ {[%clk 00:02:01]} {[%emt
00:00:10]} Kf8 {[%clk 00:01:40]} {[%emt 00:00:46]} 36. Qc8+ {[%clk 00:01:32]}
{[%emt 00:00:58]} Ke7 {[%clk 00:01:59]} {[%emt 00:00:12]} 37. Qc5+ {[%clk
00:01:44]} {[%emt 00:00:18]} Kd8 {[%clk 00:01:39]} {[%emt 00:00:50]} 38. Qd6+
{[%clk 00:01:18]} {[%emt 00:00:55]} Ke8 {[%clk 00:01:58]} {[%emt 00:00:11]} 39.
h4 {[%clk 00:01:05]} {[%emt 00:00:43]} Qf6 {[%clk 00:01:12]} {[%emt 00:01:16]}
40. Qb8+ {[%clk 00:00:36]} {[%emt 00:01:00]} Ke7 {[%clk 00:01:06]} {[%emt
00:00:35]} 41. Qc7+ {[%clk 00:24:45]} {[%emt 00:06:21]} Kf8 {[%clk 00:27:46]}
{[%emt 00:03:51]} 42. Qc8+ {[%clk 00:19:34]} {[%emt 00:05:41]} Ke7 {[%clk
00:27:54]} {[%emt 00:00:22]} 43. Qc7+ {[%clk 00:18:36]} {[%emt 00:01:28]} Kf8
{[%clk 00:28:15]} {[%emt 00:00:09]} 1/2-1/2